Workbook

Sheet READ ME

Sheet Hive Builder
B2: Product Name | C2: Product Cost | D2: Quantity | E2: Total Product Cost | H2: NOTE: This sheet assumes a single super deep bee management setup
B3: 10 frame outer cover (metal capped telescoping outer cover) | C3: =VLOOKUP(B3,Price_List!$B:$C,2,FALSE) -> 29.95 | D3: =$H$10 -> 0 | E3: =SUM(Table1[[#This Row],[Product Cost ]]*Table1[[#This Row],[Quantity ]]) -> 0
B4: 10 frame top feeder | C4: =VLOOKUP(B4,Price_List!$B:$C,2,FALSE) -> 33.95 | D4: 0 | E4: =SUM(Table1[[#This Row],[Product Cost ]]*Table1[[#This Row],[Quantity ]]) -> 0
B5: 10 frame inner cover | C5: =VLOOKUP(B5,Price_List!$B:$C,2,FALSE) -> 17.95 | D5: 0 | E5: =SUM(Table1[[#This Row],[Product Cost ]]*Table1[[#This Row],[Quantity ]]) -> 0
B6: 10 Frame Medium honey super assembled | C6: =VLOOKUP(B6,Price_List!$B:$C,2,FALSE) -> 25.95 | D6: 0 | E6: =SUM(Table1[[#This Row],[Product Cost ]]*Table1[[#This Row],[Quantity ]]) -> 0
B7: Assembled medium wood frame with plastic wax foundation | C7: =VLOOKUP(B7,Price_List!$B:$C,2,FALSE) -> 5.05 | D7: 0 | E7: =SUM(Table1[[#This Row],[Product Cost ]]*Table1[[#This Row],[Quantity ]]) -> 0
B8: Wooden Frame Metal Queen Excluder | C8: =VLOOKUP(B8,Price_List!$B:$C,2,FALSE) -> 22.95 | D8: 0 | E8: =SUM(Table1[[#This Row],[Product Cost ]]*Table1[[#This Row],[Quantity ]]) -> 0
B9: 10 frame Deep Super brood chamber | C9: =VLOOKUP(B9,Price_List!$B:$C,2,FALSE) -> 27.95 | D9: 0 | E9: =SUM(Table1[[#This Row],[Product Cost ]]*Table1[[#This Row],[Quantity ]]) -> 0 | G9: Current Hives | H9: Additional Hives
B10: Assembled Deep wood frame with plastic wax foundation | C10: =VLOOKUP(B10,Price_List!$B:$C,2,FALSE) -> 5.15 | D10: 0 | E10: =SUM(Table1[[#This Row],[Product Cost ]]*Table1[[#This Row],[Quantity ]]) -> 0 | G10: 0 | H10: 0
B11: 10 frame solid bottom board | C11: =VLOOKUP(B11,Price_List!$B:$C,2,FALSE) -> 23.95 | D11: 0 | E11: =SUM(Table1[[#This Row],[Product Cost ]]*Table1[[#This Row],[Quantity ]]) -> 0
B12: 10 frame hive stand | C12: =VLOOKUP(B12,Price_List!$B:$C,2,FALSE) -> 19.95 | D12: 0 | E12: =SUM(Table1[[#This Row],[Product Cost ]]*Table1[[#This Row],[Quantity ]]) -> 0 | I12: =M12 -> Total | J12: Per Hive | M12: Total | N12: Per hive
B13: 10 frame entrance reducer | C13: =VLOOKUP(B13,Price_List!$B:$C,2,FALSE) -> 4.75 | D13: 0 | E13: =SUM(Table1[[#This Row],[Product Cost ]]*Table1[[#This Row],[Quantity ]]) -> 0 | H13: Woodenware cost | I13: =J13*H10 ->  | J13: =(SUM(Table1[[Total Product Cost ]])-SUM(E17:E20)-E15)/H10 ->  | M13: =J13*H10 ->  | N13: =J13 -> 
B14: Galvanized Mouse Guard | C14: =VLOOKUP(B14,Price_List!$B:$C,2,FALSE) -> 7.95 | D14: 0 | E14: =SUM(Table1[[#This Row],[Product Cost ]]*Table1[[#This Row],[Quantity ]]) -> 0 | H14: Livestock/bee cost | I14: =J14*H10 ->  | J14: =(SUM(E17:E20)+E15)/H10 ->  | M14: =J14*H10 ->  | N14: =J14 -> 
B15: =B17 -> Local Bee Package | C15: =C17 -> 290 | D15: 0 | E15: =SUM(Table1[[#This Row],[Product Cost ]]*Table1[[#This Row],[Quantity ]]) -> 0 | H15: Construction cost | I15: =J15*H10 ->  | J15: =SUM(J13:J14) ->  | M15: =J15*H10 ->  | N15: =SUM(N13:N14) -> 
B16: Livestock / Bees
B17: Local Bee Package | C17: =VLOOKUP(B17,Price_List!$B:$C,2,FALSE) -> 290 | D17: 0 | E17: =SUM(Table1[[#This Row],[Product Cost ]]*Table1[[#This Row],[Quantity ]]) -> 0
B18: Nuc colony - 4 frame | C18: =VLOOKUP(B18,Price_List!$B:$C,2,FALSE) -> 275 | D18: 0 | E18: =SUM(Table1[[#This Row],[Product Cost ]]*Table1[[#This Row],[Quantity ]]) -> 0
B19: Imported Mated Queen | C19: 50 | D19: 0 | E19: =SUM(Table1[[#This Row],[Product Cost ]]*Table1[[#This Row],[Quantity ]]) -> 0
B20: Other | C20: 0 | D20: 0 | E20: =SUM(Table1[[#This Row],[Product Cost ]]*Table1[[#This Row],[Quantity ]]) -> 0
B21: Outer Covers
B22: 8-frame outer cover | C22: =VLOOKUP(B22,Price_List!$B:$C,2,FALSE) -> 34.95 | D22: 0 | E22: =SUM(Table1[[#This Row],[Product Cost ]]*Table1[[#This Row],[Quantity ]]) -> 0
B23: Garden top hive cover with metal cap (8 or 10 frame) | C23: =VLOOKUP(B23,Price_List!$B:$C,2,FALSE) -> 55.95 | D23: 0 | E23: =SUM(Table1[[#This Row],[Product Cost ]]*Table1[[#This Row],[Quantity ]]) -> 0
B24: Garden top hive cover (no metal) ** | C24: =VLOOKUP(B24,Price_List!$B:$C,2,FALSE) -> 39.95 | D24: 0 | E24: =SUM(Table1[[#This Row],[Product Cost ]]*Table1[[#This Row],[Quantity ]]) -> 0
B25: 10 frame outer cover (metal capped telescoping outer cover) | C25: =VLOOKUP(B25,Price_List!$B:$C,2,FALSE) -> 29.95 | D25: 0 | E25: =SUM(Table1[[#This Row],[Product Cost ]]*Table1[[#This Row],[Quantity ]]) -> 0
B26: Metal Capped Telescoping Outer Cover** | C26: =VLOOKUP(B26,Price_List!$B:$C,2,FALSE) -> 29.95 | D26: 0 | E26: =SUM(Table1[[#This Row],[Product Cost ]]*Table1[[#This Row],[Quantity ]]) -> 0
B27: Other | C27: 0 | D27: 0 | E27: =SUM(Table1[[#This Row],[Product Cost ]]*Table1[[#This Row],[Quantity ]]) -> 0
B28: Inner Covers
B29: 8 – frame inner cover | C29: =VLOOKUP(B29,Price_List!$B:$C,2,FALSE) -> 10.95 | D29: 0 | E29: =SUM(Table1[[#This Row],[Product Cost ]]*Table1[[#This Row],[Quantity ]]) -> 0
B30: 10 frame inner cover | C30: =VLOOKUP(B30,Price_List!$B:$C,2,FALSE) -> 17.95 | D30: 0 | E30: =SUM(Table1[[#This Row],[Product Cost ]]*Table1[[#This Row],[Quantity ]]) -> 0
B31: Deep inner cover (1-19) - 8 frame | C31: =VLOOKUP(B31,Price_List!$B:$C,2,FALSE) -> 19.95 | D31: 0 | E31: =SUM(Table1[[#This Row],[Product Cost ]]*Table1[[#This Row],[Quantity ]]) -> 0
B32: Deep inner cover (20+) - 8 frame | C32: =VLOOKUP(B32,Price_List!$B:$C,2,FALSE) -> 17.95 | D32: 0 | E32: =SUM(Table1[[#This Row],[Product Cost ]]*Table1[[#This Row],[Quantity ]]) -> 0
B33: Clear inner cover ** | C33: =VLOOKUP(B33,Price_List!$B:$C,2,FALSE) -> 32.95 | D33: 0 | E33: =SUM(Table1[[#This Row],[Product Cost ]]*Table1[[#This Row],[Quantity ]]) -> 0
B34: 8 - frame Inner cover (1-19) | C34: =VLOOKUP(B34,Price_List!$B:$C,2,FALSE) -> 17.95 | D34: 0 | E34: =SUM(Table1[[#This Row],[Product Cost ]]*Table1[[#This Row],[Quantity ]]) -> 0
B35: 8 - frame Inner cover (20+) | C35: =VLOOKUP(B35,Price_List!$B:$C,2,FALSE) -> 15.95 | D35: 0 | E35: =SUM(Table1[[#This Row],[Product Cost ]]*Table1[[#This Row],[Quantity ]]) -> 0
B36: Other | C36: 0 | D36: 0 | E36: =SUM(Table1[[#This Row],[Product Cost ]]*Table1[[#This Row],[Quantity ]]) -> 0
B37: Honey Supers
B38: Shallow super (assembled) | C38: =VLOOKUP(B38,Price_List!$B:$C,2,FALSE) -> 22.95 | D38: 0 | E38: =SUM(Table1[[#This Row],[Product Cost ]]*Table1[[#This Row],[Quantity ]]) -> 0
B39: Shallow super (unassembled) | C39: =VLOOKUP(B39,Price_List!$B:$C,2,FALSE) -> 19.5 | D39: 0 | E39: =SUM(Table1[[#This Row],[Product Cost ]]*Table1[[#This Row],[Quantity ]]) -> 0
B40: 10 Frame Medium honey super assembled | C40: =VLOOKUP(B40,Price_List!$B:$C,2,FALSE) -> 25.95 | D40: 0 | E40: =SUM(Table1[[#This Row],[Product Cost ]]*Table1[[#This Row],[Quantity ]]) -> 0
B41: medium super (assembled) | C41: =VLOOKUP(B41,Price_List!$B:$C,2,FALSE) -> 25.95 | D41: 0 | E41: =SUM(Table1[[#This Row],[Product Cost ]]*Table1[[#This Row],[Quantity ]]) -> 0
B42: medium super (unassembled) | C42: =VLOOKUP(B42,Price_List!$B:$C,2,FALSE) -> 18.95 | D42: 0 | E42: =SUM(Table1[[#This Row],[Product Cost ]]*Table1[[#This Row],[Quantity ]]) -> 0
B43: 8 – frame medium super unassembled | C43: =VLOOKUP(B43,Price_List!$B:$C,2,FALSE) -> 25.35 | D43: 0 | E43: =SUM(Table1[[#This Row],[Product Cost ]]*Table1[[#This Row],[Quantity ]]) -> 0
B44: Other | C44: 0 | D44: 0 | E44: =SUM(Table1[[#This Row],[Product Cost ]]*Table1[[#This Row],[Quantity ]]) -> 0
B45: Queen Excluders
B46: 8-Frame Metal Queen Excluder | C46: =VLOOKUP(B46,Price_List!$B:$C,2,FALSE) -> 18.5 | D46: 0 | E46: =SUM(Table1[[#This Row],[Product Cost ]]*Table1[[#This Row],[Quantity ]]) -> 0
B47: Wooden Framed Metal Queen Excluder | C47: =VLOOKUP(B47,Price_List!$B:$C,2,FALSE) -> 22.95 | D47: 0 | E47: =SUM(Table1[[#This Row],[Product Cost ]]*Table1[[#This Row],[Quantity ]]) -> 0
B48: Plastic Queen Excluder | C48: =VLOOKUP(B48,Price_List!$B:$C,2,FALSE) -> 9.95 | D48: 0 | E48: =SUM(Table1[[#This Row],[Product Cost ]]*Table1[[#This Row],[Quantity ]]) -> 0
B49: Other | C49: 0 | D49: 0 | E49: =SUM(Table1[[#This Row],[Product Cost ]]*Table1[[#This Row],[Quantity ]]) -> 0
B50: Hive Body (AKA Brood Box, Deep Super)
B51: 8-Frame Deep Super (assembled)** | C51: =VLOOKUP(B51,Price_List!$B:$C,2,FALSE) -> 31.95 | D51: 0 | E51: =SUM(Table1[[#This Row],[Product Cost ]]*Table1[[#This Row],[Quantity ]]) -> 0
B52: deep super (assembled) 10 frame | C52: =VLOOKUP(B52,Price_List!$B:$C,2,FALSE) -> 27.95 | D52: 0 | E52: =SUM(Table1[[#This Row],[Product Cost ]]*Table1[[#This Row],[Quantity ]]) -> 0
B53: Deep observation hive boxes (8 or 10 frame) | C53: =VLOOKUP(B53,Price_List!$B:$C,2,FALSE) -> 89.95 | D53: 0 | E53: =SUM(Table1[[#This Row],[Product Cost ]]*Table1[[#This Row],[Quantity ]]) -> 0
B54: deep super (unassembled) 8 or 10 frame | C54: =VLOOKUP(B54,Price_List!$B:$C,2,FALSE) -> 20.95 | D54: 0 | E54: =SUM(Table1[[#This Row],[Product Cost ]]*Table1[[#This Row],[Quantity ]]) -> 0
B55: 10 frame Deep Super brood chamber | C55: =VLOOKUP(B55,Price_List!$B:$C,2,FALSE) -> 27.95 | D55: 0 | E55: =SUM(Table1[[#This Row],[Product Cost ]]*Table1[[#This Row],[Quantity ]]) -> 0
B56: Other | C56: 0 | D56: 0 | E56: =SUM(Table1[[#This Row],[Product Cost ]]*Table1[[#This Row],[Quantity ]]) -> 0
B57: Bottom Boards
B58: 8-frame solid bottom board | C58: =VLOOKUP(B58,Price_List!$B:$C,2,FALSE) -> 26.95 | D58: 0 | E58: =SUM(Table1[[#This Row],[Product Cost ]]*Table1[[#This Row],[Quantity ]]) -> 0
B59: 8 frame screened bottom board | C59: =VLOOKUP(B59,Price_List!$B:$C,2,FALSE) -> 39.5 | D59: 0 | E59: =SUM(Table1[[#This Row],[Product Cost ]]*Table1[[#This Row],[Quantity ]]) -> 0
B60: Solid bottom board ** | C60: =VLOOKUP(B60,Price_List!$B:$C,2,FALSE) -> 23.75 | D60: 0 | E60: =SUM(Table1[[#This Row],[Product Cost ]]*Table1[[#This Row],[Quantity ]]) -> 0
B61: 10 frame solid bottom board | C61: =VLOOKUP(B61,Price_List!$B:$C,2,FALSE) -> 23.95 | D61: 0 | E61: =SUM(Table1[[#This Row],[Product Cost ]]*Table1[[#This Row],[Quantity ]]) -> 0
B62: 10 frame Screened Bottom Board | C62: =VLOOKUP(B62,Price_List!$B:$C,2,FALSE) -> 34.95 | D62: 0 | E62: =SUM(Table1[[#This Row],[Product Cost ]]*Table1[[#This Row],[Quantity ]]) -> 0
B63: 10 frame entrance reducer | C63: =VLOOKUP(B63,Price_List!$B:$C,2,FALSE) -> 4.75 | D63: 0 | E63: =SUM(Table1[[#This Row],[Product Cost ]]*Table1[[#This Row],[Quantity ]]) -> 0
B64: 8-frame entrance reducer | C64: =VLOOKUP(B64,Price_List!$B:$C,2,FALSE) -> 4.75 | D64: 0 | E64: =SUM(Table1[[#This Row],[Product Cost ]]*Table1[[#This Row],[Quantity ]]) -> 0
B65: Galvanized Mouse Guard | C65: =VLOOKUP(B65,Price_List!$B:$C,2,FALSE) -> 7.95 | D65: 0 | E65: =SUM(Table1[[#This Row],[Product Cost ]]*Table1[[#This Row],[Quantity ]]) -> 0
B66: 8-Frame Mouse Guard | C66: =VLOOKUP(B66,Price_List!$B:$C,2,FALSE) -> 10.95 | D66: 0 | E66: =SUM(Table1[[#This Row],[Product Cost ]]*Table1[[#This Row],[Quantity ]]) -> 0
B67: Slatted Rack (8 frame) | C67: =VLOOKUP(B67,Price_List!$B:$C,2,FALSE) -> 24.95 | D67: 0 | E67: =SUM(Table1[[#This Row],[Product Cost ]]*Table1[[#This Row],[Quantity ]]) -> 0
B68: Other | C68: 0 | D68: 0 | E68: =SUM(Table1[[#This Row],[Product Cost ]]*Table1[[#This Row],[Quantity ]]) -> 0
B69: Hive Stands
B70: Hive Stand 8 or 10 frame | C70: =VLOOKUP(B70,Price_List!$B:$C,2,FALSE) -> 19.95 | D70: 0 | E70: =SUM(Table1[[#This Row],[Product Cost ]]*Table1[[#This Row],[Quantity ]]) -> 0
B71: Hive Stand (with legs) - 8 or 10 frame | C71: =VLOOKUP(B71,Price_List!$B:$C,2,FALSE) -> 27.95 | D71: 0 | E71: =SUM(Table1[[#This Row],[Product Cost ]]*Table1[[#This Row],[Quantity ]]) -> 0
B72: Other | C72: 0 | D72: 0 | E72: =SUM(Table1[[#This Row],[Product Cost ]]*Table1[[#This Row],[Quantity ]]) -> 0
B73: Frames & Foundations
B74: Assembled medium wooden frame with wired wax foundation | C74: =VLOOKUP(B74,Price_List!$B:$C,2,FALSE) -> 5.5 | D74: 0 | E74: =SUM(Table1[[#This Row],[Product Cost ]]*Table1[[#This Row],[Quantity ]]) -> 0
B75: Deep unassembled frames for plastic foundation ** | C75: =VLOOKUP(B75,Price_List!$B:$C,2,FALSE) -> 22.5 | D75: 0 | E75: =SUM(Table1[[#This Row],[Product Cost ]]*Table1[[#This Row],[Quantity ]]) -> 0
B76: Pierco Deep Foundation | C76: =VLOOKUP(B76,Price_List!$B:$C,2,FALSE) -> 19.95 | D76: 0 | E76: =SUM(Table1[[#This Row],[Product Cost ]]*Table1[[#This Row],[Quantity ]]) -> 0
B77: Unwaxed rite cell deep foundation | C77: =VLOOKUP(B77,Price_List!$B:$C,2,FALSE) -> 1.9 | D77: 0 | E77: =SUM(Table1[[#This Row],[Product Cost ]]*Table1[[#This Row],[Quantity ]]) -> 0
B78: Permanent foundation deep | C78: =VLOOKUP(B78,Price_List!$B:$C,2,FALSE) -> 1.95 | D78: 0 | E78: =SUM(Table1[[#This Row],[Product Cost ]]*Table1[[#This Row],[Quantity ]]) -> 0
B79: Assembled medium wood frame with plastic wax foundation | C79: =VLOOKUP(B79,Price_List!$B:$C,2,FALSE) -> 5.05 | D79: 0 | E79: =SUM(Table1[[#This Row],[Product Cost ]]*Table1[[#This Row],[Quantity ]]) -> 0
B80: Medium unassembled frames for plastic foundation (10 pack) | C80: =VLOOKUP(B80,Price_List!$B:$C,2,FALSE) -> 22 | D80: 0 | E80: =SUM(Table1[[#This Row],[Product Cost ]]*Table1[[#This Row],[Quantity ]]) -> 0
B81: Permanent foundation medium | C81: =VLOOKUP(B81,Price_List!$B:$C,2,FALSE) -> 1.7 | D81: 0 | E81: =SUM(Table1[[#This Row],[Product Cost ]]*Table1[[#This Row],[Quantity ]]) -> 0
B82: Assembled deep rite cell wooden frame | C82: =VLOOKUP(B82,Price_List!$B:$C,2,FALSE) -> 5.15 | D82: 0 | E82: =SUM(Table1[[#This Row],[Product Cost ]]*Table1[[#This Row],[Quantity ]]) -> 0
B83: Assembled medium wooden frame with plastic foundation | C83: =VLOOKUP(B83,Price_List!$B:$C,2,FALSE) -> 5.05 | D83: 0 | E83: =SUM(Table1[[#This Row],[Product Cost ]]*Table1[[#This Row],[Quantity ]]) -> 0
B84: Assembled Deep wooden frame with wired wax foundation | C84: =VLOOKUP(B84,Price_List!$B:$C,2,FALSE) -> 5.95 | D84: 0 | E84: =SUM(Table1[[#This Row],[Product Cost ]]*Table1[[#This Row],[Quantity ]]) -> 0
B85: Assembled Deep Wooden Frame with wax coated foundation (1) | C85: =VLOOKUP(B85,Price_List!$B:$C,2,FALSE) -> 5.15 | D85: 0 | E85: =SUM(Table1[[#This Row],[Product Cost ]]*Table1[[#This Row],[Quantity ]]) -> 0
B86: Assembled Deep Wooden Frame with wax coated foundation (20-199) | C86: =VLOOKUP(B86,Price_List!$B:$C,2,FALSE) -> 5.05 | D86: 0 | E86: =SUM(Table1[[#This Row],[Product Cost ]]*Table1[[#This Row],[Quantity ]]) -> 0
B87: Assembled Deep Wooden Frame with wax coated foundation (200+) | C87: =VLOOKUP(B87,Price_List!$B:$C,2,FALSE) -> 4.85 | D87: 0 | E87: =SUM(Table1[[#This Row],[Product Cost ]]*Table1[[#This Row],[Quantity ]]) -> 0
B88: Foundation Rods 10 pack | C88: =VLOOKUP(B88,Price_List!$B:$C,2,FALSE) -> 0.95 | D88: 0 | E88: =SUM(Table1[[#This Row],[Product Cost ]]*Table1[[#This Row],[Quantity ]]) -> 0
B89: Frame wire | C89: =VLOOKUP(B89,Price_List!$B:$C,2,FALSE) -> 13.95 | D89: 0 | E89: =SUM(Table1[[#This Row],[Product Cost ]]*Table1[[#This Row],[Quantity ]]) -> 0
B90: Other | C90: 0 | D90: 0 | E90: =SUM(Table1[[#This Row],[Product Cost ]]*Table1[[#This Row],[Quantity ]]) -> 0
B91: Feeders
B92: Ceracell top feeder | C92: 32.95 | D92: 0 | E92: =SUM(Table1[[#This Row],[Product Cost ]]*Table1[[#This Row],[Quantity ]]) -> 0
B93: Ceracell 5-frame Nuc top feeders | C93: 25.95 | D93: 0 | E93: =SUM(Table1[[#This Row],[Product Cost ]]*Table1[[#This Row],[Quantity ]]) -> 0
B94: 10 frame top feeder with super | C94: 33.95 | D94: 0 | E94: =SUM(Table1[[#This Row],[Product Cost ]]*Table1[[#This Row],[Quantity ]]) -> 0
B95: 8 frame top feeder with super | C95: 39.95 | D95: 0 | E95: =SUM(Table1[[#This Row],[Product Cost ]]*Table1[[#This Row],[Quantity ]]) -> 0
B96: 8-frame no drown top tray feeder | C96: 37.5 | D96: 0 | E96: =SUM(Table1[[#This Row],[Product Cost ]]*Table1[[#This Row],[Quantity ]]) -> 0
B97: 1 gallon cap and ladder feeder | C97: 18.95 | D97: 0 | E97: =SUM(Table1[[#This Row],[Product Cost ]]*Table1[[#This Row],[Quantity ]]) -> 0
B98: 2 gallon cap and ladder feeder | C98: 22.95 | D98: 0 | E98: =SUM(Table1[[#This Row],[Product Cost ]]*Table1[[#This Row],[Quantity ]]) -> 0

Sheet Cost and Revenue Input
C1: Beekeeping Management Tool
C3: One-Time Costs | G3: Operational Costs | Y3: Miscellaneous Costs
C5: Fixed Costs (One-Time Costs) | G5: Mite Treatment | K5: Feeding | O5: Pest Control | S5: Fuel Costs | Y5: Miscellaneous
C6: 0 | D6: Vented Bee Jacket | E6: =C6*VLOOKUP(D6,Price_List!$B:$C,2,FALSE) -> 0 | G6: 0 | H6: Apistan strips – box of 10 | I6: =G6*VLOOKUP(H6,Price_List!$B:$C,2,FALSE) -> 0 | K6: 0 | L6: 2kg bag of Sugar (Walmart) | M6: =K6*VLOOKUP(L6,Price_List!$B:$C,2,FALSE) -> 0 | O6: 0 | P6: Gallagher m60 fence Energizer | Q6: =O6*VLOOKUP(P6,Price_List!$B:$C,2,FALSE) -> 0 | S6: Trip Distance (KM) | U6: 0 | Y6: 0 | Z6: Beginner kit | AA6: =Y6*VLOOKUP(Z6,Price_List!$B:$C,2,FALSE) -> 0
C7: 0 | D7: Bee Veil | E7: =C7*VLOOKUP(D7,Price_List!$B:$C,2,FALSE) -> 0 | G7: 0 | H7: Apivar strips – 4 pack | I7: =G7*VLOOKUP(H7,Price_List!$B:$C,2,FALSE) -> 0 | K7: 0 | L7: Ultra bee pollen pattie singles | M7: =K7*VLOOKUP(L7,Price_List!$B:$C,2,FALSE) -> 0 | O7: 0 | P7: Gallagher M120 Fence Energizer | Q7: =O7*VLOOKUP(P7,Price_List!$B:$C,2,FALSE) -> 0 | S7: Trips per Week | U7: 0 | Y7: 0 | Z7: Standard kit | AA7: =Y7*VLOOKUP(Z7,Price_List!$B:$C,2,FALSE) -> 0
C8: 0 | D8: Bee Gloves (leather) | E8: =C8*VLOOKUP(D8,Price_List!$B:$C,2,FALSE) -> 0 | G8: 0 | H8: Apivar strips – 12 pack | I8: =G8*VLOOKUP(H8,Price_List!$B:$C,2,FALSE) -> 0 | K8: 0 | L8: Ultra bee pollen pattie (40) | M8: =K8*VLOOKUP(L8,Price_List!$B:$C,2,FALSE) -> 0 | O8: 0 | P8: Gallagher s20 solar fence energizer | Q8: =O8*VLOOKUP(P8,Price_List!$B:$C,2,FALSE) -> 0 | S8: Weeks | U8: 0 | Y8: 0 | Z8: Deluxe Beginner Kit | AA8: =Y8*VLOOKUP(Z8,Price_List!$B:$C,2,FALSE) -> 0
C9: 0 | D9: Bee Gloves (cow skin) | E9: =C9*VLOOKUP(D9,Price_List!$B:$C,2,FALSE) -> 0 | G9: 0 | H9: Formic Pro Strips (2 doses) | I9: =G9*VLOOKUP(H9,Price_List!$B:$C,2,FALSE) -> 0 | K9: 0 | L9: Global Polen pattie | M9: =K9*VLOOKUP(L9,Price_List!$B:$C,2,FALSE) -> 0 | O9: 0 | P9: Gallagher S40 Solar Fence Energizer | Q9: =O9*VLOOKUP(P9,Price_List!$B:$C,2,FALSE) -> 0 | S9: Gas/Fuel Price ($/L) | U9: 0 | Y9: 0 | Z9: Queen rearing frame | AA9: =Y9*VLOOKUP(Z9,Price_List!$B:$C,2,FALSE) -> 0
C10: 0 | D10: Bee Gloves (goat skin) | E10: =C10*VLOOKUP(D10,Price_List!$B:$C,2,FALSE) -> 0 | G10: 0 | H10: Formic Pro Strips (10 doses) | I10: =G10*VLOOKUP(H10,Price_List!$B:$C,2,FALSE) -> 0 | K10: 0 | L10: Global pollen pattie (40) | M10: =K10*VLOOKUP(L10,Price_List!$B:$C,2,FALSE) -> 0 | O10: 0 | P10: Gallagher S100 Solar Fence Energizer | Q10: =O10*VLOOKUP(P10,Price_List!$B:$C,2,FALSE) -> 0 | S10: Fuel Efficiency (L/100KM) | U10: 0 | Y10: 0 | Z10: Wood cell bar | AA10: =Y10*VLOOKUP(Z10,Price_List!$B:$C,2,FALSE) -> 0
C11: 0 | D11: Hive tool | E11: =C11*VLOOKUP(D11,Price_List!$B:$C,2,FALSE) -> 0 | G11: 0 | H11: Formic Pro Strips (30 doses) | I11: =G11*VLOOKUP(H11,Price_List!$B:$C,2,FALSE) -> 0 | K11: 0 | L11: Hive alive fondant patties | M11: =K11*VLOOKUP(L11,Price_List!$B:$C,2,FALSE) -> 0 | O11: 0 | P11: Turbo wire 2.5mm | Q11: =O11*VLOOKUP(P11,Price_List!$B:$C,2,FALSE) -> 0 | Y11: 0 | Z11: Subcontract out honey extraction | AA11: 0
C12: 0 | D12: Smoker & Shield (large) | E12: =C12*VLOOKUP(D12,Price_List!$B:$C,2,FALSE) -> 0 | G12: 0 | H12: Thymovar (10 count) | I12: =G12*VLOOKUP(H12,Price_List!$B:$C,2,FALSE) -> 0 | K12: 0 | L12: Pro Winter Feed - 10lb Bucket | M12: =K12*VLOOKUP(L12,Price_List!$B:$C,2,FALSE) -> 0 | O12: 0 | P12: Turbo Braid Wire - 400m | Q12: =O12*VLOOKUP(P12,Price_List!$B:$C,2,FALSE) -> 0 | S12: Labour | Y12: 0 | Z12: Imported Queen | AA12: 0
C13: 0 | D13: Smoker & Shield (medium) | E13: =C13*VLOOKUP(D13,Price_List!$B:$C,2,FALSE) -> 0 | G13: 0 | H13: Oxalic Acid Dihydrate – 1 kg | I13: =G13*VLOOKUP(H13,Price_List!$B:$C,2,FALSE) -> 0 | K13: 0 | L13: Pro winter feed 50 lb bucket | M13: =K13*VLOOKUP(L13,Price_List!$B:$C,2,FALSE) -> 0 | O13: 0 | P13: Fibreglass Corner Posts | Q13: =O13*VLOOKUP(P13,Price_List!$B:$C,2,FALSE) -> 0 | S13: Employees | U13: Wage/Hr | V13: Hours | W13: Total Cost | Y13: 0 | Z13: Bee Broker Services | AA13: 0
C14: 0 | D14: Bee Brush | E14: =C14*VLOOKUP(D14,Price_List!$B:$C,2,FALSE) -> 0 | G14: 0 | H14: Foric Acid jug – 1 L | I14: =G14*VLOOKUP(H14,Price_List!$B:$C,2,FALSE) -> 0 | K14: 0 | L14: 2:1 feeding syrup (23L /32 kg) | M14: =K14*VLOOKUP(L14,Price_List!$B:$C,2,FALSE) -> 0 | O14: 0 | P14: 6' Grounding Rod | Q14: =O14*VLOOKUP(P14,Price_List!$B:$C,2,FALSE) -> 0 | S14: Matthew | U14: 0 | V14: 0 | W14: =U14*V14 -> 0 | Y14: 0 | Z14: Other (E.g. Transportation costs) | AA14: 0
C15: 0 | D15: Oxalic acid vaporizer | E15: =C15*VLOOKUP(D15,Price_List!$B:$C,2,FALSE) -> 0 | G15: 0 | H15: Absorbent pads (<99) | I15: =G15*VLOOKUP(H15,Price_List!$B:$C,2,FALSE) -> 0 | K15: 0 | L15: Other | M15: 0 | O15: 0 | P15: Electric Fence Warning Sign | Q15: =O15*VLOOKUP(P15,Price_List!$B:$C,2,FALSE) -> 0 | S15: Employee #2 | U15: 0 | V15: 0 | W15: =U15*V15 -> 0
C16: 0 | D16: Varox vapouriser | E16: =C16*VLOOKUP(D16,Price_List!$B:$C,2,FALSE) -> 0 | G16: 0 | H16: Absorbent pads (100-999) | I16: =G16*VLOOKUP(H16,Price_List!$B:$C,2,FALSE) -> 0 | K16: 0 | L16: Other | M16: 0 | O16: 0 | P16: Other | Q16: 0 | S16: Employee #3 | U16: 0 | V16: 0 | W16: 0
C17: 0 | D17: Respirator | E17: =C17*VLOOKUP(D17,Price_List!$B:$C,2,FALSE) -> 0 | G17: 0 | H17: Absorbent pads (>1000) | I17: =G17*VLOOKUP(H17,Price_List!$B:$C,2,FALSE) -> 0 | K17: 0 | L17: Other | M17: 0 | S17: Employee #4 | U17: 0 | V17: 0 | W17: 0
C18: 0 | D18: Respirator replacement cartridges | E18: =C18*VLOOKUP(D18,Price_List!$B:$C,2,FALSE) -> 0 | G18: 0 | H18: Varroa - Easy Check | I18: =G18*VLOOKUP(H18,Price_List!$B:$C,2,FALSE) -> 0 | K18: 0 | L18: Other | M18: 0 | S18: Employee #5 | U18: 0 | V18: 0 | W18: 0
C19: 0 | D19: Turbo Uncapping Fork | E19: =C19*VLOOKUP(D19,Price_List!$B:$C,2,FALSE) -> 0 | G19: 0 | H19: Varroa sticky board | I19: =G19*VLOOKUP(H19,Price_List!$B:$C,2,FALSE) -> 0 | K19: 0 | L19: Other | M19: 0 | S19: Employee #6 | U19: 0 | V19: 0 | W19: 0
C20: 0 | D20: Drip extraction: hobbyist uncapping kit | E20: =C20*VLOOKUP(D20,Price_List!$B:$C,2,FALSE) -> 0 | G20: 0 | H20: American foulbrood test kit | I20: =G20*VLOOKUP(H20,Price_List!$B:$C,2,FALSE) -> 0 | K20: 0 | L20: Other | M20: 0 | S20: Employee #7 | U20: 0 | V20: 0 | W20: 0
C21: 0 | D21: 2-Frame Manual Hobby Extractor | E21: =C21*VLOOKUP(D21,Price_List!$B:$C,2,FALSE) -> 0 | G21: 0 | H21: European foulbrood Test kit | I21: =G21*VLOOKUP(H21,Price_List!$B:$C,2,FALSE) -> 0 | K21: 0 | L21: Other | M21: 0 | S21: Employee #8 | U21: 0 | V21: 0 | W21: 0
C22: 0 | D22: 4-Frame Manual Hobby Extractor | E22: =C22*VLOOKUP(D22,Price_List!$B:$C,2,FALSE) -> 0 | G22: 0 | H22: Apistan strips – box of 100 | I22: =G22*VLOOKUP(H22,Price_List!$B:$C,2,FALSE) -> 0 | K22: 0 | L22: Other | M22: 0 | S22: Employee #9 | U22: 0 | V22: 0 | W22: 0
C23: 0 | D23: Maxant 3100H 9-Frame Hand Extractor | E23: =C23*VLOOKUP(D23,Price_List!$B:$C,2,FALSE) -> 0 | G23: 0 | H23: Apivar strips – 60 pack | I23: =G23*VLOOKUP(H23,Price_List!$B:$C,2,FALSE) -> 0 | K23: 0 | L23: Other | M23: 0 | S23: Employee #10 | U23: 0 | V23: 0 | W23: 0
C24: 0 | D24: Maxant 3100P 9-Frame Extractor | E24: =C24*VLOOKUP(D24,Price_List!$B:$C,2,FALSE) -> 0 | G24: 0 | H24: Foric Acid jug – 20 L | I24: =G24*VLOOKUP(H24,Price_List!$B:$C,2,FALSE) -> 0 | K24: 0 | L24: Other | M24: 0 | S24: Total Wages Paid | W24: =SUM(W14:W23) -> 0
C25: 0 | D25: Industry membership | E25: =C25*VLOOKUP(D25,Price_List!$B:$C,2,FALSE) -> 0 | G25: 0 | H25: Other | I25: 0 | K25: 0 | L25: Other | M25: 0
C26: 0 | D26: Hand dolly | E26: =C26*VLOOKUP(D26,Price_List!$B:$C,2,FALSE) -> 0 | G26: 0 | H26: Other | I26: 0 | K26: 0 | L26: Other | M26: 0
C27: 0 | D27: Folding hand truck | E27: =C27*VLOOKUP(D27,Price_List!$B:$C,2,FALSE) -> 0
C28: 0 | D28: Battery-operated vaporizer varrox eddy | E28: =C28*VLOOKUP(D28,Price_List!$B:$C,2,FALSE) -> 0
C29: 0 | D29: OxaVap ProVap 110 Vaporizer | E29: =C29*VLOOKUP(D29,Price_List!$B:$C,2,FALSE) -> 0
C30: 0 | D30: OxaVap Cordless ProVap | E30: =C30*VLOOKUP(D30,Price_List!$B:$C,2,FALSE) -> 0
C31: 0 | D31: OxaVap ProVap EZ 110 vaporizer | E31: =C31*VLOOKUP(D31,Price_List!$B:$C,2,FALSE) -> 0
C32: 0 | D32: Maxant Mobile Uncapping Tank | E32: =C32*VLOOKUP(D32,Price_List!$B:$C,2,FALSE) -> 0 | L32: =IF(OR(SUM(E6:E69) = 0, SUM(I6:I26) = 0, SUM(M6:M26) = 0, SUM(Q6:Q16) = 0, SUM(U6:U10) = 0, SUM(AA6:AA14) = 0, W24 = 0), "WARNING: One or more cost categories are blank! Review your cost categories to ensure the sheet is entirely complete.", "") -> WARNING: One or more cost categories are blank! Review your cost categories to ensure the sheet is entirely complete.
C33: 0 | D33: Maxant 1400PL Extractor | E33: =C33*VLOOKUP(D33,Price_List!$B:$C,2,FALSE) -> 0
C34: 0 | D34: Bottling tank (16 gallon) | E34: =C34*VLOOKUP(D34,Price_List!$B:$C,2,FALSE) -> 0
C35: 0 | D35: Bottling tank (25 gallon) | E35: =C35*VLOOKUP(D35,Price_List!$B:$C,2,FALSE) -> 0
C36: 0 | D36: NSBA membership fees (0-49) | E36: =C36*VLOOKUP(D36,Price_List!$B:$C,2,FALSE) -> 0
C37: 0 | D37: NSBA membership fees (50-99) | E37: =C37*VLOOKUP(D37,Price_List!$B:$C,2,FALSE) -> 0
C38: 0 | D38: NSBA membership fees (100-499) | E38: =C38*VLOOKUP(D38,Price_List!$B:$C,2,FALSE) -> 0
C39: 0 | D39: NSBA membership fees (500+) | E39: =C39*VLOOKUP(D39,Price_List!$B:$C,2,FALSE) -> 0
C40: 0 | D40: Fork Lift | E40: 0
C41: 0 | D41: Bee Crane/lift | E41: 0
C42: 0 | D42: Hive Carrier | E42: 0
C43: 0 | D43: Fork Lift | E43: 0 | K43: Beekeeping Costs (Do not edit these) | O43: Revenue
C44: 0 | D44: Bee Crane/lift | E44: 0 | K44: Woodenware | M44: ='Hive Builder'!M13 ->  | P44: Source | Q44: Units Sold | R44: Selling Price/Unit | S44: Amount
C45: 0 | D45: Insurance Costs | E45: 0 | K45: Bees/Livestock | M45: ='Hive Builder'!M14 ->  | O45: Nucleus Colonies | Q45: 0 | R45: 0 | S45: =(Q45*R45) -> 0
C46: 0 | D46: Storage facility | E46: 0 | K46: One-time Costs | M46: =SUM(E6:E69) -> 0 | O46: Pollination Services | Q46: 0 | R46: 0 | S46: =(Q46*R46) -> 0
C47: 0 | D47: Utilities | E47: 0 | K47: Mite Treatment | M47: =SUM(I6:I26) -> 0 | O47: Honey Production | Q47: 0 | R47: 0 | S47: 0
C48: 0 | D48: Vehicle Costs | E48: 0 | K48: Feeding | M48: =SUM(M6:M26) -> 0 | O48: Full Colonies | Q48: 0 | R48: 0 | S48: 0
B49: Overwintering & Hive Transportation Equipment | C49: 0 | D49: Bee cozy double | E49: =C49*VLOOKUP(D49,Price_List!$B:$C,2,FALSE) -> 0 | K49: Pest Control | M49: =SUM(Q6:Q16) -> 0 | O49: Wax crafts - Candles | Q49: 0 | R49: 0 | S49: 0
C50: 0 | D50: Bee cozy inner cover insulator | E50: =C50*VLOOKUP(D50,Price_List!$B:$C,2,FALSE) -> 0 | K50: Fuel | M50: =(U6*U7*U8*U9*(U10/100)) -> 0 | O50: Other | Q50: 0 | R50: 0 | S50: 0
C51: 0 | D51: Bee cozy single | E51: =C51*VLOOKUP(D51,Price_List!$B:$C,2,FALSE) -> 0 | K51: Labour | M51: =SUM(W14:W23) -> 0 | O51: Total | S51: =SUM(S45:S50) -> 0
C52: 0 | D52: Hogan double winter wrap | E52: =C52*VLOOKUP(D52,Price_List!$B:$C,2,FALSE) -> 0 | K52: Miscellaneous | M52: =SUM(AA6:AA14) -> 0
C53: 0 | D53: Hogan single winter wrap | E53: =C53*VLOOKUP(D53,Price_List!$B:$C,2,FALSE) -> 0 | K53: Total | M53: =SUM(M44:M52) -> 
C54: 0 | D54: Bee Dry double | E54: =C54*VLOOKUP(D54,Price_List!$B:$C,2,FALSE) -> 0
C55: 0 | D55: Bee Dry Single | E55: =C55*VLOOKUP(D55,Price_List!$B:$C,2,FALSE) -> 0
C56: 0 | D56: Bee Dry Lid Insulation | E56: =C56*VLOOKUP(D56,Price_List!$B:$C,2,FALSE) -> 0 | O56: Product-Specific Costs
C57: 0 | D57: Quilting box | E57: =C57*VLOOKUP(D57,Price_List!$B:$C,2,FALSE) -> 0 | O57: Product-Specific Cost | Q57: Per Unit | R57: Total
C58: 0 | D58: Winter Rim sprucer | E58: =C58*VLOOKUP(D58,Price_List!$B:$C,2,FALSE) -> 0 | O58: =_xlfn.CONCAT("Additional costs per unit of ",O45," sold") -> Additional costs per unit of Nucleus Colonies sold | Q58: 0 | R58: =Q58*Q45 -> 0
C59: 0 | D59: Migratory cover | E59: =C59*VLOOKUP(D59,Price_List!$B:$C,2,FALSE) -> 0 | O59: Additional costs per unit of Pollination Services sold | Q59: 0 | R59: 0
C60: 0 | D60: Rachet straps – 1500lb (4 pack) | E60: =C60*VLOOKUP(D60,Price_List!$B:$C,2,FALSE) -> 0 | O60: Additional costs per unit of Honey Production sold | Q60: 0 | R60: 0
C61: 0 | D61: Rachet straps – 300lb (4 pack) | E61: =C61*VLOOKUP(D61,Price_List!$B:$C,2,FALSE) -> 0 | O61: Additional costs per unit of Full Colonies sold | Q61: 0 | R61: 0
C62: 0 | D62: Double 4-Frame Nuc Box | E62: =C62*VLOOKUP(D62,Price_List!$B:$C,2,FALSE) -> 0 | O62: Additional costs per unit of Wax crafts - Candles sold | Q62: 0 | R62: 0
C63: 0 | D63: 5 frame wood nuc box | E63: =C63*VLOOKUP(D63,Price_List!$B:$C,2,FALSE) -> 0 | O63: Additional costs per unit of Other sold | Q63: 0 | R63: 0
C64: 0 | D64: Deluxe 4 frame nuc box kit | E64: =C64*VLOOKUP(D64,Price_List!$B:$C,2,FALSE) -> 0
C65: 0 | D65: Wooden Pallet | E65: 0
C66: 0 | D66: Other | E66: 0
C67: 0 | D67: Other | E67: 0
C68: 0 | D68: Other | E68: 0
C69: 0 | D69: Other | E69: 0

Sheet Payback Calc. (One-Product)
B4: Product being sold: | C4: 1 | K4: =B8 -> Nucleus Colonies | R4: =B8 -> Nucleus Colonies
K5: Pollination Services (per hive) | R5: Pollination Services (per hive)
K6: Honey Production | R6: Honey Production
B7: Product Prices (Per Unit) | K7: Full Colonies | R7: Full Colonies
B8: ='Cost and Revenue Input'!O45 -> Nucleus Colonies | C8: 0 | K8: Wax crafts - Candles | R8: Wax crafts - Candles
B9: =CONCATENATE('Cost and Revenue Input'!O46," (per hive)") -> Pollination Services (per hive) | C9: 0 | K9: Other | R9: Other
B10: ='Cost and Revenue Input'!O47 -> Honey Production | C10: 0 | K10: Variable cost per colony
B11: ='Cost and Revenue Input'!O48 -> Full Colonies | C11: 0 | K11: Variable cost per hive
B12: ='Cost and Revenue Input'!O49 -> Wax crafts - Candles | C12: 0
B13: ='Cost and Revenue Input'!O50 -> Other | C13: ='Cost and Revenue Input'!R50 -> 0
B15: Number of Hives Required for Each Additional Unit Of: | K15: Hives to break even
B16: Pollination Hive | C16: 1 | K16: Barrels to break even
B17: =B8 -> Nucleus Colonies | C17: 0 | K17: Colonies to break even
B18: Pollination Services (per hive) | C18: 0 | K18: Colonies to break even
B19: Honey Production | C19: 0
B20: Full Colonies | C20: 0
B21: Wax crafts - Candles | C21: 0
B22: Other | C22: 0
B24: Additional cost per unit of production not already captured:
B26: ='Cost and Revenue Input'!O45 -> Nucleus Colonies | C26: ='Cost and Revenue Input'!Q58 -> 0
B27: ='Cost and Revenue Input'!O46 -> Pollination Services | C27: ='Cost and Revenue Input'!Q59 -> 0
B28: ='Cost and Revenue Input'!O47 -> Honey Production | C28: ='Cost and Revenue Input'!Q60 -> 0
B29: ='Cost and Revenue Input'!O48 -> Full Colonies | C29: ='Cost and Revenue Input'!Q61 -> 0
B30: ='Cost and Revenue Input'!O49 -> Wax crafts - Candles | C30: ='Cost and Revenue Input'!Q62 -> 0
B31: ='Cost and Revenue Input'!O50 -> Other | C31: ='Cost and Revenue Input'!Q63 -> 0
B34: Incremental Hives + Existing Hives | C34: ='Hive Builder'!H10+'Hive Builder'!G10 -> 0
B37: Product Name | C37: =CHOOSE($C$4,$R$4,$R$5,$R$6,$R$7,$R$8,$R$9) -> Nucleus Colonies | E37: Product Price | F37: =CHOOSE($C$4,$C$8,$C$9,$C$10,$C$11,$C$12,$C$13) -> 0
B40: Variable Cost Summary (Hives Only) | E40: Break-Even Point Summary
B41: Cost Type | C41: Amount | E41: =CONCATENATE("Revenue per unit of ",CHOOSE($C$4,K4,K5,K6,K7,K8,K9)) -> Revenue per unit of Nucleus Colonies | F41: =F37 -> 0
B42: Mite Treatment | C42: ='Cost and Revenue Input'!M47 -> 0 | E42: =CONCATENATE("Variable cost per unit of ",CHOOSE($C$4,K4,K5,K6,K7,K8,K9)) -> Variable cost per unit of Nucleus Colonies | F42: =SUM((CHOOSE($C$4,C17,C18,C19,C20,C21,C22)*C50)+(CHOOSE($C$4,C26,C27,C28,C29,C30,C31))) -> 
B43: Feeding | C43: ='Cost and Revenue Input'!M48 -> 0 | E43: Contribution margin | F43: =F41-F42 ->  | G43: Note that if this number is not positive the calculator will not work as each unit is being sold at a loss.
B44: Pest Control | C44: ='Cost and Revenue Input'!M49 -> 0
B45: Fuel | C45: ='Cost and Revenue Input'!M50 -> 0 | E45: Total Incremental Fixed Cost | F45: =(SUMPRODUCT('Cost and Revenue Input'!C6:C69,'Cost and Revenue Input'!E6:E69))+'Hive Builder'!M13+'Hive Builder'!M14 -> 
B46: Labour | C46: ='Cost and Revenue Input'!M51 -> 0
B47: Miscellaneous | C47: ='Cost and Revenue Input'!M52 -> 0 | E47: Years to break-even | F47: =F45/((C34*F37)-C48) -> 
B48: Total | C48: =SUM(C42:C47) -> 0 | E48: Total sales dollars to break even | F48: =F47*F37*C34 -> 
B49: Hives | C49: =C34 -> 0
B50: Variable cost of hives | C50: =C48/C49 -> 

Sheet Payback Calc. (Multi-Product)
B4: Product Name | C4: Selling Price per Unit | D4: Units sold | E4: Annual Revenue
B5: ='Cost and Revenue Input'!O45 -> Nucleus Colonies | C5: ='Cost and Revenue Input'!R45 -> 0 | D5: ='Cost and Revenue Input'!Q45 -> 0 | E5: =C5*D5 -> 0
B6: ='Cost and Revenue Input'!O46 -> Pollination Services | C6: ='Cost and Revenue Input'!R46 -> 0 | D6: ='Cost and Revenue Input'!Q46 -> 0 | E6: 0
B7: ='Cost and Revenue Input'!O47 -> Honey Production | C7: ='Cost and Revenue Input'!R47 -> 0 | D7: ='Cost and Revenue Input'!Q47 -> 0 | E7: 0
B8: ='Cost and Revenue Input'!O48 -> Full Colonies | C8: ='Cost and Revenue Input'!R48 -> 0 | D8: ='Cost and Revenue Input'!Q48 -> 0 | E8: 0
B9: ='Cost and Revenue Input'!O49 -> Wax crafts - Candles | C9: ='Cost and Revenue Input'!R49 -> 0 | D9: ='Cost and Revenue Input'!Q49 -> 0 | E9: 0
B10: ='Cost and Revenue Input'!O50 -> Other | C10: ='Cost and Revenue Input'!R50 -> 0 | D10: ='Cost and Revenue Input'!Q50 -> 0 | E10: 0
B13: Total Fixed Costs: | C13: =SUM('Cost and Revenue Input'!M44:M46) -> 
B14: Annual variable cost | C14: ='Payback Calc. (One-Product)'!C48 -> 0
B16: Years to break-even | D16: =ROUNDUP(C13/(SUM(E5:E10)-C14),0) -> 
B20: =CONCATENATE("Number of units of ",B6," to sell") -> Number of units of Pollination Services to sell | D20: =ROUNDUP(D5*$D$16,0) -> 
B21: Number of units of Honey Production to sell
B22: Number of units of Full Colonies to sell
B23: Number of units of Wax crafts - Candles to sell
B24: Number of units of Other to sell
B25: Number of units of to sell

Sheet Profit_and_Loss
A1: Company Name and Year (E.g. Siri's Beekeeping 2024)
A2: Projected Profit & Loss
A3: =_xlfn.CONCAT("Produced on ", TEXT(TODAY(), "dd/mm/yyyy")) -> Produced on 12/12/2023
A4: Revenues
A5: ='Cost and Revenue Input'!O45 -> Nucleus Colonies | F5: ='Cost and Revenue Input'!S45 -> 0 | L5: Total variable expenses per hive | M5: =F21 / 40 -> 
A6: ='Cost and Revenue Input'!O46 -> Pollination Services | F6: ='Cost and Revenue Input'!S46 -> 0 | L6: Total fixed expenses per hive | M6: =F38 / 40 -> 0
A7: ='Cost and Revenue Input'!O47 -> Honey Production | F7: ='Cost and Revenue Input'!S47 -> 0 | L7: Total expenses per hive | M7: =M5 + M6 -> 
A8: ='Cost and Revenue Input'!O48 -> Full Colonies | F8: ='Cost and Revenue Input'!S48 -> 0
A9: ='Cost and Revenue Input'!O49 -> Wax crafts - Candles | F9: ='Cost and Revenue Input'!S49 -> 0
A10: ='Cost and Revenue Input'!O50 -> Other | F10: ='Cost and Revenue Input'!S50 -> 0
A11: Total Revenues | F11: =SUM(F5:F10) -> 0
A13: Expenses (Variable)
A14: ='Cost and Revenue Input'!G5 -> Mite Treatment | F14: ='Cost and Revenue Input'!M47 -> 0
A15: ='Cost and Revenue Input'!K5 -> Feeding | F15: ='Cost and Revenue Input'!M48 -> 0
A16: ='Cost and Revenue Input'!O5 -> Pest Control | F16: ='Cost and Revenue Input'!M49 -> 0
A17: ='Cost and Revenue Input'!S5 -> Fuel Costs | F17: ='Cost and Revenue Input'!M50 -> 0
A18: ='Cost and Revenue Input'!S12 -> Labour | F18: ='Cost and Revenue Input'!M51 -> 0
A19: ='Cost and Revenue Input'!Y5 -> Miscellaneous | F19: ='Cost and Revenue Input'!M52 -> 0
A20: Product-specific variable costs | F20: ='Cost and Revenue Input'!M53 -> 
A21: Total Variable Expenses | F21: =SUM(F14:F20) -> 
A23: Expenses (Fixed) | D23: Total Cost | E23: # Of years of Use | F23: Amount allocated to this year
A24: ='Hive Builder'!H13 -> Woodenware cost | D24: ='Hive Builder'!M13 ->  | F24: =D24/E24 -> 
A25: ='Hive Builder'!H14 -> Livestock/bee cost | D25: ='Hive Builder'!M14 -> 

Sheet Price_List
A1: ID | B1: Product Name | C1: Cost
B2: Fixed Costs
A3: 1 | B3: Vented Bee Jacket | C3: 159.95
A4: 2 | B4: Bee Veil | C4: 33.95
A5: 3 | B5: Bee Gloves (leather) | C5: 23.95
A6: 4 | B6: Bee Gloves (cow skin) | C6: 36.95
A7: 5 | B7: Bee Gloves (goat skin) | C7: 38.25
A8: 6 | B8: Hive tool | C8: 9.95
A9: 7 | B9: Smoker & Shield (large) | C9: 46.95
A10: 8 | B10: Smoker & Shield (medium) | C10: 39.95
A11: 9 | B11: Bee Brush | C11: 7.95
A12: 10 | B12: Oxalic acid vaporizer | C12: 119.95
A13: 11 | B13: Varox vapouriser | C13: 224.05
A14: 12 | B14: Respirator | C14: 79.95
A15: 13 | B15: Respirator replacement cartridges | C15: 34.95
A16: 14 | B16: Turbo Uncapping Fork | C16: 35.95
A17: 15 | B17: Drip extraction: hobbyist uncapping kit | C17: 229.95
A18: 16 | B18: 2-Frame Manual Hobby Extractor | C18: 385.99
A19: 17 | B19: 4-Frame Manual Hobby Extractor | C19: 485.99
A20: 18 | B20: Maxant 3100H 9-Frame Hand Extractor | C20: 995
A21: 19 | B21: Maxant 3100P 9-Frame Extractor | C21: 1595
A22: 20 | B22: Industry membership | C22: 115
A23: 21 | B23: Hand dolly | C23: 118
A24: 22 | B24: Folding hand truck | C24: 79
A25: 23 | B25: Battery-operated vaporizer varrox eddy | C25: 729.95
A26: 24 | B26: OxaVap ProVap 110 Vaporizer | C26: 735.95
A27: 25 | B27: OxaVap Cordless ProVap | C27: 854.95
A28: 26 | B28: OxaVap ProVap EZ 110 vaporizer | C28: 1095.95
A29: 27 | B29: Maxant Mobile Uncapping Tank | C29: 1995
A30: 28 | B30: Maxant 1400PL Extractor | C30: 2895
A31: 29 | B31: Bottling tank (16 gallon) | C31: 2580
A32: 30 | B32: Bottling tank (25 gallon) | C32: 3095
A33: 31 | B33: NSBA membership fees (0-49) | C33: 69
A34: 32 | B34: NSBA membership fees (50-99) | C34: 115
A35: 33 | B35: NSBA membership fees (100-499) | C35: 230
A36: 34 | B36: NSBA membership fees (500+) | C36: 402.5
A37: 35 | B37: Fork Lift | C37: $20,000 – $45,000
A38: 36 | B38: Bee Crane/lift | C38: $25,000 - $30,000
B39: Mite Treatment
A40: 37 | B40: Apistan strips – box of 10 | C40: 43.95
A41: 38 | B41: Apivar strips – 4 pack | C41: 25.95
A42: 39 | B42: Apivar strips – 12 pack | C42: 57.95
A43: 40 | B43: Formic Pro Strips (2 doses) | C43: 26.95
A44: 41 | B44: Formic Pro Strips (10 doses) | C44: 69.95
A45: 42 | B45: Formic Pro Strips (30 doses) | C45: 189.95
A46: 43 | B46: Thymovar (10 count) | C46: 48.5
A47: 44 | B47: Oxalic Acid Dihydrate – 1 kg | C47: 21.95
A48: 45 | B48: Foric Acid jug – 1 L | C48: 19
A49: 46 | B49: absorbent pads (<99) | C49: 0.2
A50: 47 | B50: absorbent pads (100-999) | C50: 0.15
A51: 48 | B51: absorbent pads (>1000) | C51: 0.12
A52: 49 | B52: Varroa - Easy Check | C52: 31.95
A53: 50 | B53: Varroa sticky board | C53: 6.95
A54: 51 | B54: American foulbrood test kit | C54: 24.95
A55: 52 | B55: European foulbrood Test kit | C55: 20.95
A56: 53 | B56: Apistan strips – box of 100 | C56: 354.95
A57: 54 | B57: Apivar strips – 60 pack | C57: 215.95
A58: 55 | B58: Foric Acid jug – 20 L | C58: 138
B59: Feeding
A60: 56 | B60: 2kg bag of Sugar (Walmart) | C60: 3
A61: 57 | B61: Ultra bee pollen pattie singles | C61: 4.95
A62: 58 | B62: Ultra bee pollen pattie (40) | C62: 170
A63: 59 | B63: Global Polen pattie | C63: 4.75
A64: 60 | B64: Global pollen pattie (40) | C64: 144.95
A65: 61 | B65: Hive alive fondant patties | C65: 6.95
A66: 62 | B66: Pro Winter Feed - 10lb Bucket | C66: 29.95
A67: 63 | B67: Pro winter feed 50 lb bucket | C67: 112.95
A68: 64 | B68: Boardman Entrance Feeder | C68: 12.95
A69: 65 | B69: Top Feeder - 10 frame | C69: 33.95
A70: 66 | B70: 1-gallon cap and ladder feeder | C70: 18.95
A71: 67 | B71: Pail feeder 3.8 Litre | C71: 11.5
A72: 68 | B72: 2:1 feeding syrup (23L /32 kg) | C72: 49.95
B73: Over-Wintering & Hive Transportation
A74: 69 | B74: Bee cozy double | C74: 21.25
A75: 70 | B75: Bee cozy inner cover insulator | C75: 4.95
A76: 71 | B76: Bee cozy single | C76: 18.25
A77: 72 | B77: Hogan double winter wrap | C77: 19.95
A78: 73 | B78: Hogan single winter wrap | C78: 18.95
A79: 74 | B79: Bee Dry double | C79: 19.95
A80: 75 | B80: Bee Dry Single | C80: 16.95
A81: 76 | B81: Bee Dry Lid Insulation | C81: 14.95
A82: 77 | B82: Quilting box | C82: 21.75
A83: 78 | B83: Winter Rim sprucer | C83: 13.95
B84: Pest Control
A85: 79 | B85: Gallagher m60 fence energizer | C85: 139.95
A86: 80 | B86: Gallagher M120 Fence energizer | C86: 199.95
A87: 81 | B87: Gallagher s20 solar fence energizer | C87: 377.99
A88: 82 | B88: Gallagher S40 Solar Fence Energizer | C88: 455.95
A89: 83 | B89: Gallagher S100 Solar Fence Energizer | C89: 677.95
A90: 84 | B90: Turbo wire 2.5mm | C90: 80.49
A91: 85 | B91: Turbo Braid Wire - 400m | C91: 149.99
A92: 86 | B92: Fibreglass Corner Posts | C92: 12.5
A93: 87 | B93: 6' Grounding Rod | C93: 19.95
A94: 88 | B94: Electric Fence Warning Sign | C94: 5.89
B95: Hive Costs (Fixed)
A96: 89 | B96: 8-frame outer cover | C96: 34.95
A97: 90 | B97: Garden top hive cover with metal cap (8 or 10 frame) | C97: 55.95
A98: 91 | B98: Garden top hive cover (no metal) ** | C98: 39.95
A99: 92 | B99: Metal Capped Telescoping Outer Cover** | C99: 29.95
A100: 93 | B100: 8 – frame inner cover | C100: 10.95
A101: 94 | B101: Deep inner cover (1-19) - 8 frame | C101: 19.95
A102: 95 | B102: Deep inner cover (20+) - 8 frame | C102: 17.95
A103: 96 | B103: Clear inner cover ** | C103: 32.95
A104: 97 | B104: 8 - frame Inner cover (1-19) | C104: 17.95
A105: 98 | B105: 8 - frame Inner cover (20+) | C105: 15.95
A106: 99 | B106: Shallow super (assembled) | C106: 22.95
A107: 100 | B107: Shallow super (unassembled) | C107: 19.5
A108: 101 | B108: medium super (assembled) | C108: 25.95
A109: 102 | B109: medium super (unassembled) | C109: 18.95
A110: 103 | B110: 8 – frame medium super unassembled | C110: 25.35
A111: 104 | B111: 8-Frame Metal Queen Excluder | C111: 18.5
A112: 105 | B112: Wooden Framed Metal Queen Excluder | C112: 22.95
A113: 106 | B113: Plastic Queen Excluder | C113: 9.95
A114: 107 | B114: 8-Frame Deep Super (assembled)** | C114: 31.95
A115: 108 | B115: deep super (assembled) 10 frame | C115: 27.95
A116: 109 | B116: Deep observation hive boxes (8 or 10 frame) | C116: 89.95
A117: 110 | B117: deep super (unassembled) 8 or 10 frame | C117: 20.95
A118: 111 | B118: 8-frame solid bottom board | C118: 26.95
A119: 112 | B119: 8 frame screened bottom board | C119: 39.5
A120: 113 | B120: Solid bottom board ** | C120: 23.75
A121: 114 | B121: 10 frame Screened Bottom Board | C121: 34.95
A122: 115 | B122: 8-frame entrance reducer | C122: 4.75
A123: 116 | B123: 8-Frame Mouse Guard | C123: 10.95
A124: 117 | B124: Slatted Rack (8 frame) | C124: 24.95
A125: 118 | B125: Hive Stand 8 or 10 frame | C125: 19.95
A126: 119 | B126: Hive Stand (with legs) - 8 or 10 frame | C126: 27.95
A127: 120 | B127: Assembled medium wooden frame with wired wax foundation | C127: 5.5
A128: 121 | B128: Deep unassembled frames for plastic foundation ** | C128: 22.5
A129: 122 | B129: Pierco Deep Foundation | C129: 19.95
A130: 123 | B130: Unwaxed rite cell deep foundation | C130: 1.9
A131: 124 | B131: Permanent foundation deep | C131: 1.95
A132: 125 | B132: Medium unassembled frames for plastic foundation (10 pack) | C132: 22
A133: 126 | B133: Permanent foundation medium | C133: 1.7
A134: 127 | B134: Assembled deep rite cell wooden frame | C134: 5.15
A135: 128 | B135: Assembled medium wooden frame with plastic foundation | C135: 5.05
A136: 129 | B136: Assembled Deep wooden frame with wired wax foundation | C136: 5.95
A137: 130 | B137: Assembled Deep Wooden Frame with wax coated foundation (1) | C137: 5.15
A138: 131 | B138: Assembled Deep Wooden Frame with wax coated foundation (20-199) | C138: 5.05
A139: 132 | B139: Assembled Deep Wooden Frame with wax coated foundation (200+) | C139: 4.85
A140: 133 | B140: Foundation Rods 10 pack | C140: 0.95
A141: 134 | B141: Frame wire | C141: 13.95
A142: 135 | B142: 10 frame outer cover (metal capped telescoping outer cover) | C142: 29.95
A143: 136 | B143: 10 frame top feeder | C143: 33.95
A144: 137 | B144: 10 frame inner cover | C144: 17.95
A145: 138 | B145: 10 Frame Medium honey super assembled | C145: 25.95
A146: 139 | B146: Assembled medium wood frame with plastic wax foundation | C146: 5.05
A147: 140 | B147: Wooden Frame Metal Queen Excluder | C147: 22.95
A148: 141 | B148: 10 frame Deep Super brood chamber | C148: 27.95
A149: 142 | B149: Assembled Deep wood frame with plastic wax foundation | C149: 5.15
A150: 143 | B150: 10 frame solid bottom board | C150: 23.95
A151: 144 | B151: 10 frame hive stand | C151: 19.95
A152: 145 | B152: 10 frame entrance reducer | C152: 4.75
A153: 146 | B153: Galvanized Mouse Guard | C153: 7.95
B154: Other Costs
A155: 147 | B155: Local Bee Package | C155: 290
A156: 148 | B156: Imported Queen | C156: $40 - $60
A157: 149 | B157: Nuc colony - 4 frame | C157: 275
A158: 150 | B158: Double 4-Frame Nuc Box | C158: 53
A159: 151 | B159: Beginner kit | C159: 159.95
A160: 152 | B160: Standard kit | C160: 319
A161: 153 | B161: Deluxe Beginner Kit | C161: 399.95
A162: 154 | B162: 5 frame wood nuc box | C162: 65.95
A163: 155 | B163: Deluxe 4 frame nuc box kit | C163: 49.95
A164: 156 | B164: Queen rearing frame | C164: 14.95
A165: 157 | B165: Wood cell bar | C165: 2.05
A166: 158 | B166: Migratory cover | C166: 22.95
A167: 159 | B167: Rachet straps – 1500lb (4 pack) | C167: 34.95
A168: 160 | B168: Rachet straps – 300lb (4 pack) | C168: 39.99
A169: 161 | B169: Subcontract out honey extraction | C169: $ 0.40 - $0.80 /lb
